bitfinex-derivatives/quotes_SOLF0:USTF0_20250310
["timestamp","ask_amount","ask_price","bid_price","bid_amount"]
[1741569740254,7.8789,126.95,126.91,7.8806]
[1741569740449,20.12397558,126.96,126.87,20.12397558]
[1741569740654,20.12397558,126.96,126.86,36.04]
[1741569740858,20.12397558,126.96,126.9,0.04974665]
[1741569741061,20.12397558,126.94,126.9,0.04974665]
[1741569741359,20.12397558,126.92,126.9,0.04974665]
[1741569741563,7.881,126.91,126.9,0.04974665]
[1741569741968,20.12397558,126.92,126.9,0.04974665]
[1741569742162,56.14397558,126.94,126.9,0.04974665]
[1741569742358,64.02337558,126.94,126.9,0.04974665]
[1741569742564,36.02,126.94,126.9,0.04974665]
[1741569742869,28.00217558,126.96,126.92,7.8803]
[1741569743264,20.12397558,126.96,126.9,36.02]
[1741569743464,7.8785,126.95,126.93,0.05140489]
[1741569744669,28.00227558,126.96,126.93,0.05140489]
[1741569744868,20.12397558,126.98,126.93,0.05140489]
[1741569745262,28.00107558,126.98,126.93,0.05140489]
[1741569745459,20.12397558,126.98,126.93,0.05140489]
[1741569745667,260.12,126.99,126.94,36.0]
[1741569746369,20.12397558,126.98,126.94,36.0]
[1741569746669,7.8782,126.96,126.93,0.05140489]
[1741569746860,20.12397558,126.98,126.93,0.05140489]
[1741569747264,20.12397558,126.96,126.93,0.05140489]
[1741569747668,7.8791,126.94,126.93,0.05140489]
[1741569748166,20.12397558,126.96,126.93,0.05140489]
[1741569748465,20.12397558,127.0,126.93,0.05140489]
[1741569748662,20.12397558,127.0,126.91,60.26537558]
[1741569748857,27.99967558,127.0,126.95,0.0505267]
[1741569749062,20.12397558,127.0,126.95,36.0505267]
[1741569749468,7.8762,126.99,126.95,43.9286267]
[1741569749671,20.12397558,127.0,126.95,36.0505267]
[1741569750363,4.2263,127.01,126.95,36.0505267]
[1741569750864,20.12397558,127.02,126.95,36.0505267]
[1741569751170,264.1721,127.05,126.95,56.17450228]
[1741569751369,7.8732,127.04,126.99,7.8758]
[1741569751565,4.1721,127.05,126.99,43.8558]
[1741569751763,4.1721,127.05,127.0,0.05038639]
[1741569752070,20.12397558,127.04,127.0,0.05038639]
[1741569752671,20.12397558,127.02,127.0,0.05038639]
[1741569752872,35.98,127.01,126.89,280.12397558]
[1741569753072,20.12397558,126.95,126.89,35.98]
[1741569753371,7.8782,126.96,126.92,7.8799]
[1741569753568,56.10397558,126.97,126.89,35.98]
[1741569754069,0.05038639,126.94,126.92,0.0583111]
[1741569754461,7.8797,126.93,126.92,0.0583111]
[1741569755270,7.8824,126.89,126.87,31.41381626]
[1741569756369,7.93610205,126.89,126.87,31.46707684]
[1741569757873,0.05370205,126.89,126.87,31.46707684]
[1741569758277,0.05370205,126.89,126.87,0.05326058]
[1741569759576,7.93620205,126.89,126.87,0.05326058]
[1741569759977,7.8828,126.88,126.87,0.05326058]
[1741569760570,68.14510072,126.88,126.79,12.3328]
[1741569761172,32.18510072,126.86,126.79,12.3328]
[1741569761371,7.8854,126.84,126.79,12.3328]
[1741569761971,7.94142274,126.83,126.8,0.05455588]
[1741569762170,0.05542274,126.83,126.8,0.05455588]
[1741569762975,7.8872,126.81,126.8,0.05455588]
[1741569763476,7.8882,126.8,126.76,7.8901]
[1741569763670,7.8882,126.8,126.75,39.30451626]
[1741569763869,35.96,126.8,126.75,39.30451626]
[1741569764079,68.14510072,126.8,126.75,31.41381626]
[1741569764469,76.03310072,126.8,126.75,31.41381626]
[1741569764672,0.06011554,126.79,126.76,0.06065256]
[1741569765174,32.18510072,126.78,126.76,0.00703964]
[1741569765572,7.8897,126.77,126.76,0.00703964]
[1741569765975,32.18510072,126.78,126.76,0.00703964]
[1741569766885,7.8897,126.77,126.76,0.00703964]
[1741569769479,68.14510072,126.78,126.68,35.96]
[1741569769884,7.8914,126.75,126.7,7.894]
[1741569770078,68.14510072,126.78,126.7,7.894]
[1741569770384,68.14510072,126.78,126.68,35.96]
[1741569770586,0.06002678,126.75,126.73,0.05892545]
[1741569771675,0.06002678,126.75,126.73,7.95082545]
[1741569771872,0.06002678,126.75,126.73,0.05892545]
[1741569772979,7.95122678,126.75,126.73,0.05892545]
[1741569774487,7.8915,126.74,126.73,0.05892545]
[1741569779183,68.2051275,126.75,126.67,3.92]
[1741569779389,32.18510072,126.72,126.67,3.92]
[1741569779592,7.8944,126.7,126.67,3.92]
[1741569779784,32.18510072,126.72,126.66,7.8961]
[1741569780182,0.05393862,126.7,126.68,0.05329713]
[1741569780690,7.8947,126.69,126.68,0.05329713]
[1741569781091,32.23903934,126.7,126.68,0.05329713]
[1741569781286,40.13343934,126.7,126.68,0.05329713]
[1741569781486,32.23903934,126.7,126.68,0.05329713]
[1741569781790,7.8947,126.69,126.68,0.05329713]
[1741569785787,44.14713934,126.7,126.68,0.05329713]
[1741569786088,36.25283934,126.7,126.68,0.05329713]
[1741569786288,24.26423038,126.7,126.68,0.05329713]
[1741569786489,7.8947,126.69,126.68,0.05329713]
[1741569786786,60.20423038,126.7,126.68,0.05329713]
[1741569787588,0.05393862,126.7,126.68,0.05329713]
[1741569788894,0.05393862,126.7,126.69,7.8947]
[1741569789099,0.05393862,126.7,126.68,0.05329713]
[1741569789893,0.05393862,126.7,126.69,7.8947]
[1741569790392,0.05393862,126.7,126.68,0.05329713]
[1741569792390,7.8947,126.69,126.68,0.05329713]
[1741569796495,35.97393862,126.7,126.68,0.05329713]
[1741569796693,0.05393862,126.7,126.68,0.05329713]
[1741569796897,0.05393862,126.7,126.69,7.8947]
[1741569797793,68.23048047,126.78,126.69,3.94]
[1741569798004,7.8923,126.73,126.7,4.0024]
[1741569798298,68.23048047,126.74,126.69,3.9956]
[1741569798799,0.05277745,126.73,126.71,7.8932]
[1741569800001,0.05277745,126.73,126.72,7.8928]
[1741569800201,0.05277745,126.73,126.7,0.05195056]
[1741569800894,7.94557745,126.73,126.7,0.05195056]
[1741569801095,68.21048047,126.72,126.7,0.05195056]
[1741569801695,76.10368047,126.72,126.7,0.05195056]
[1741569801891,68.21048047,126.72,126.7,0.05195056]
[1741569802095,7.8934,126.71,126.7,0.05195056]
[1741569803702,0.05277745,126.73,126.7,7.94595056]
[1741569803995,0.05277745,126.73,126.7,0.05195056]
[1741569804394,0.05277745,126.73,126.71,7.893]
[1741569805097,0.05277745,126.73,126.7,7.94595056]
[1741569805299,0.05277745,126.73,126.7,0.05195056]
[1741569805491,260.2,126.79,126.7,0.05195056]
[1741569805693,260.2,126.79,126.75,7.8906]
[1741569806497,260.2,126.79,126.7,6.7677]
[1741569806698,32.31048047,126.76,126.7,6.7677]
[1741569806892,68.21048047,126.76,126.73,0.05814126]
[1741569807297,0.05215322,126.74,126.73,0.05814126]
[1741569807505,7.94365322,126.74,126.73,0.05814126]
[1741569808003,0.05215322,126.74,126.73,0.05814126]
[1741569808695,292.51048047,126.79,126.75,7.8908]
[1741569808900,292.51048047,126.79,126.7,6.7677]
[1741569809295,292.51048047,126.79,126.72,7.8926]
[1741569809502,292.51048047,126.79,126.7,6.7677]
[1741569809901,7.8915,126.74,126.73,0.05793982]
[1741569810105,0.05356638,126.76,126.73,0.05793982]
[1741569810304,0.05356638,126.76,126.74,7.8912]
[1741569810502,0.05356638,126.76,126.73,35.93793982]
[1741569811510,0.05356638,126.76,126.73,0.05793982]
[1741569812209,7.8914,126.75,126.73,0.05793982]
[1741569812411,20.23058654,126.76,126.73,0.05793982]
[1741569812602,28.12128654,126.76,126.73,0.05793982]
[1741569812804,0.05356638,126.76,126.73,0.05793982]
[1741569813114,0.05356638,126.76,126.73,35.91793982]
[1741569814015,20.23058654,126.76,126.73,0.05793982]
[1741569814818,7.8915,126.74,126.73,0.05793982]
[1741569817114,20.23058654,126.76,126.73,0.05793982]
[1741569817421,0.05356638,126.76,126.73,0.05793982]
[1741569818517,0.05356638,126.76,126.74,7.891]
[1741569819723,0.05356638,126.76,126.75,7.8909]
[1741569819924,20.17702016,126.8,126.74,35.84]
[1741569820128,20.17702016,126.8,126.75,7.8906]
[1741569820320,20.17702016,126.8,126.74,35.84]
[1741569820527,20.17702016,126.84,126.8,7.8878]
[1741569821021,0.05002728,126.83,126.81,0.05249434]
[1741569821214,0.05002728,126.83,126.81,7.93959434]
[1741569822226,0.05002728,126.83,126.82,7.8866]
[1741569822420,0.05002728,126.83,126.81,0.05249434]
[1741569824126,28.06362016,126.82,126.81,0.05249434]
[1741569825128,0.05002728,126.83,126.81,0.05249434]
[1741569825730,7.93632728,126.83,126.81,0.05249434]
[1741569825929,0.05002728,126.83,126.81,0.05249434]
[1741569826326,7.8866,126.82,126.81,0.05249434]
[1741569827229,0.05002728,126.83,126.81,0.05249434]
[1741569827732,20.17702016,126.88,126.81,35.87249434]
[1741569827926,20.17702016,126.88,126.82,3.293]
[1741569828124,20.17702016,126.9,126.82,3.293]
[1741569828329,20.17702016,126.92,126.82,23.47002016]
[1741569828530,20.17702016,126.92,126.87,7.8832]
[1741569828531,7.8813,126.91,126.87,7.8832]
[1741569828729,0.05179609,126.88,126.87,35.8]
[1741569828926,20.17702016,126.92,126.87,35.8]
[1741569829126,7.8824,126.89,126.87,35.8]
[1741569829326,7.93533283,126.89,126.87,35.8]
[1741569830331,0.05293283,126.89,126.87,35.8]
[1741569830537,0.05293283,126.89,126.86,0.05274163]
[1741569831535,7.8794,126.94,126.89,7.8817]
[1741569831732,260.26,126.97,126.88,35.78]
[1741569832135,7.8787,126.95,126.9,7.8814]
[1741569832632,0.02069618,126.94,126.91,0.05015547]
[1741569833535,7.8803,126.93,126.91,0.05015547]
[1741569833838,0.02069618,126.94,126.91,0.05015547]
[1741569834643,7.89999618,126.94,126.91,0.05015547]
[1741569835134,0.02069618,126.94,126.91,0.05015547]
[1741569835726,7.8767,126.98,126.92,35.78]
[1741569835925,38.9726,127.01,126.92,35.78]
[1741569836238,3.1926,127.01,126.92,39.1007]
[1741569836629,3.1926,127.01,126.93,3.3557]
[1741569836830,3.1926,127.01,126.95,0.05008664]
[1741569837232,7.8749,127.01,126.97,7.8772]
[1741569837630,7.8749,127.01,126.98,0.054126]
[1741569838035,32.20676884,127.02,126.98,0.054126]
[1741569838036,7.8743,127.02,126.98,0.054126]
[1741569838234,292.20676884,127.09,126.98,0.054126]
[1741569838435,292.20676884,127.09,127.02,7.8737]
[1741569838740,7.8705,127.08,127.04,0.05261928]
[1741569838934,292.20676884,127.09,127.04,0.05261928]
[1741569839134,267.8699,127.09,127.04,0.05261928]
[1741569839331,260.0,127.09,127.04,0.05261928]
[1741569839531,3.1926,127.1,127.04,0.05261928]
[1741569840237,7.8703,127.09,127.04,0.05261928]
[1741569840441,32.20676884,127.14,127.04,0.05261928]
[1741569840630,32.20676884,127.14,127.04,32.25938812]
[1741569840831,7.868,127.12,127.06,7.8714]
[1741569841028,32.20676884,127.14,127.04,35.39026884]
[1741569841029,32.20676884,127.14,127.08,0.05205184]
[1741569841238,32.20676884,127.12,127.08,0.05205184]
[1741569841434,35.74,127.13,127.08,0.05205184]
[1741569841635,35.74,127.13,127.07,35.74]
[1741569841940,35.74,127.13,127.09,0.05759065]
[1741569842131,35.48856884,127.16,127.09,0.05759065]
[1741569842726,3.2818,127.16,127.09,0.05759065]
[1741569843031,260.0,127.17,127.11,7.8681]
[1741569843231,260.0,127.17,127.1,6.5829]
[1741569843431,260.0,127.17,127.11,35.72]
[1741569843633,32.20676884,127.16,127.12,0.05661359]
[1741569844139,32.20676884,127.13,127.06,38.9818]
[1741569845236,7.8685,127.12,127.06,38.9818]
[1741569845437,0.05322799,127.11,127.08,0.05994642]
[1741569845829,0.05322799,127.11,127.06,38.9818]
[1741569846128,0.05322799,127.11,127.08,0.05819107]
[1741569847131,7.8698,127.09,127.08,0.05819107]
[1741569848735,0.05322799,127.11,127.08,0.05819107]
[1741569849342,0.05322799,127.11,127.1,7.8692]
[1741569849639,0.05322799,127.11,127.1,43.5492]
[1741569850541,260.0,127.17,127.1,39.62]
[1741569850748,260.0,127.17,127.1,35.68]
[1741569851234,292.20676884,127.17,127.1,35.68]
[1741569851635,32.20676884,127.14,127.06,3.2618]
[1741569851837,35.66,127.13,127.05,35.66]
[1741569852140,32.20676884,127.11,127.04,6.7486]
[1741569852841,0.05446412,127.09,127.06,0.06064027]
[1741569853344,7.871,127.07,127.06,0.06064027]
[1741569854344,7.8706,127.08,127.06,0.06064027]
[1741569854544,32.26123296,127.09,127.06,0.06064027]
[1741569855449,7.8709,127.08,127.06,0.06064027]
[1741569855638,0.05446412,127.09,127.06,0.06064027]
[1741569855838,0.05446412,127.09,127.06,35.72064027]
[1741569856045,2.6114,127.16,127.06,39.66064027]
[1741569856240,292.20676884,127.17,127.07,38.68796884]
[1741569856446,260.0,127.17,127.07,38.68796884]
[1741569856645,7.8656,127.16,127.11,7.8682]
[1741569856846,260.0,127.17,127.1,35.64]
[1741569857047,7.8676,127.13,127.1,35.64]
[1741569857349,292.20676884,127.17,127.08,3.3286]
[1741569857350,32.20676884,127.15,127.12,0.05932888]
[1741569857543,32.20676884,127.15,127.08,38.9686]
[1741569857742,67.84676884,127.15,127.12,0.0594981]
[1741569857944,67.84676884,127.15,127.08,35.64]
[1741569858144,7.8694,127.1,127.08,35.64]
[1741569858340,67.84676884,127.15,127.08,35.64]
[1741569858640,32.20676884,127.13,127.08,35.64]
[1741569858846,32.20676884,127.13,127.05,35.64]
[1741569859244,0.05022597,127.1,127.08,0.06061441]
[1741569859547,7.91982597,127.1,127.08,0.06061441]
[1741569859750,0.05022597,127.1,127.08,0.06061441]
[1741569859953,7.8698,127.09,127.08,0.06061441]
[1741569861543,0.05022597,127.1,127.08,0.06061441]
[1741569863246,7.91962597,127.1,127.08,0.06061441]
[1741569863647,0.05022597,127.1,127.08,0.06061441]
[1741569865448,7.8698,127.09,127.08,0.06061441]
[1741569865654,0.05022597,127.1,127.08,0.06061441]
[1741569867252,7.8698,127.09,127.08,0.06061441]
[1741569867650,0.05022597,127.1,127.08,0.06061441]
[1741569868654,0.05022597,127.1,127.09,7.8698]
[1741569868954,7.91942597,127.1,127.08,0.06061441]
[1741569869753,0.05022597,127.1,127.08,0.06061441]
[1741569870553,7.91982597,127.1,127.08,0.06061441]
[1741569871048,0.05022597,127.1,127.08,0.06061441]
[1741569871445,0.05022597,127.1,127.08,7.93051441]
[1741569871951,0.05022597,127.1,127.08,0.06061441]
[1741569872650,0.05022597,127.1,127.08,7.93071441]
[1741569873448,7.91942597,127.1,127.08,0.06061441]
[1741569873652,0.05022597,127.1,127.08,0.06061441]
[1741569874157,7.8698,127.09,127.08,0.06061441]
[1741569874549,0.05022597,127.1,127.08,0.06061441]
[1741569874745,7.91972597,127.1,127.08,0.06061441]
[1741569875656,0.05022597,127.1,127.08,0.06061441]
[1741569877258,0.05022597,127.1,127.08,7.93051441]
[1741569878955,0.05022597,127.1,127.09,43.4498]
[1741569879253,3.3138,127.15,127.09,35.58]
[1741569879451,11.1803,127.15,127.11,7.8682]
[1741569879652,3.3138,127.15,127.09,35.58]
[1741569879861,32.20676884,127.14,127.09,35.58]
[1741569880159,32.20676884,127.14,127.1,0.05526187]
[1741569880559,40.07406884,127.14,127.1,7.92406187]
[1741569880760,32.20676884,127.14,127.1,7.92406187]
[1741569881259,7.8675,127.13,127.1,7.92406187]
[1741569881957,3.3138,127.15,127.1,0.05526187]
[1741569882154,260.0,127.17,127.1,0.05526187]
[1741569882358,260.0,127.17,127.1,3.36856187]
[1741569882554,7.8655,127.16,127.1,6.77326187]
[1741569882955,260.0,127.17,127.1,9.86266187]
[1741569883156,35.60196884,127.2,127.1,9.86266187]
[1741569883462,35.60196884,127.2,127.1,9.8074]
[1741569883659,35.60196884,127.2,127.14,0.05202243]
[1741569883859,7.8638,127.19,127.15,7.8657]
[1741569884059,35.60196884,127.2,127.15,7.8657]
[1741569884261,32.20676884,127.2,127.15,7.8657]
[1741569884460,7.8644,127.18,127.15,7.8657]
[1741569884858,32.20676884,127.2,127.16,7.8653]
[1741569885063,40.07006884,127.2,127.16,7.8653]
[1741569885460,7.8633,127.2,127.17,0.05357709]
[1741569885766,259.56,127.23,127.17,35.61357709]
[1741569886063,7.8628,127.21,127.17,0.05357709]
[1741569886362,259.56,127.23,127.17,0.05357709]
[1741569886564,259.56,127.23,127.17,7.91777709]
[1741569886761,259.56,127.23,127.17,0.05357709]
[1741569886956,259.56,127.23,127.18,3.1278]
[1741569888068,32.20676884,127.27,127.18,3.1278]
[1741569888364,7.8583,127.28,127.23,7.8608]
[1741569888557,273.64425845,127.29,127.23,35.54]
[1741569889158,273.64425845,127.29,127.25,0.05878734]
[1741569889356,7.8582,127.28,127.25,0.05878734]
[1741569889554,262.7859,127.29,127.25,0.05878734]
[1741569889965,7.8593,127.26,127.25,0.05878734]
[1741569890161,262.7859,127.29,127.25,0.05878734]
[1741569891163,32.20676884,127.27,127.2,35.52]
[1741569891563,67.72676884,127.27,127.2,35.52]
[1741569891763,7.8616,127.23,127.2,35.52]
[1741569891970,32.20676884,127.25,127.2,35.52]
[1741569892474,0.05793016,127.24,127.21,0.05736957]
[1741569893382,270.6438,127.29,127.23,7.8606]
[1741569893681,262.7859,127.29,127.24,35.52]
[1741569894071,262.7859,127.29,127.21,35.52]
[1741569894478,262.7859,127.29,127.24,0.0582189]
[1741569894684,7.857,127.3,127.25,43.3799]
[1741569894872,32.20676884,127.33,127.25,38.7234]
[1741569895076,7.8566,127.31,127.25,46.5832]
[1741569895277,32.20676884,127.33,127.25,46.5832]
[1741569895477,32.20676884,127.33,127.27,0.06018996]
[1741569895883,7.8578,127.29,127.27,0.06018996]
[1741569896184,32.20676884,127.31,127.27,0.06018996]
[1741569896678,32.20676884,127.29,127.2,35.5]
[1741569897378,3.1112,127.3,127.2,35.5]
[1741569897682,3.1112,127.3,127.22,7.8616]
[1741569897882,3.1112,127.3,127.2,35.5]
[1741569898081,7.8597,127.26,127.25,0.05222659]
[1741569898282,0.05436096,127.27,127.25,0.05222659]
[1741569898579,0.05436096,127.27,127.25,7.91202659]
[1741569898783,0.05436096,127.27,127.25,0.05222659]
[1741569901275,0.05436096,127.27,127.26,7.8593]
[1741569901486,0.05436096,127.27,127.25,3.39592659]
[1741569902386,0.05436096,127.27,127.26,7.8593]
[1741569902587,0.05436096,127.27,127.25,3.39592659]
[1741569902885,7.91336096,127.27,127.25,3.39592659]
[1741569903089,0.05436096,127.27,127.25,3.39592659]
[1741569903483,0.05436096,127.27,127.25,0.05222659]
[1741569904484,0.05436096,127.27,127.25,35.53222659]
[1741569905391,2.547,127.36,127.25,35.53222659]
[1741569905590,7.8547,127.34,127.3,7.8565]
[1741569905891,3.3125,127.36,127.26,6.6232]
[1741569906286,3.3125,127.36,127.29,7.8572]
[1741569906485,3.3125,127.36,127.29,0.05166873]
[1741569906686,7.8564,127.31,127.29,0.05166873]
[1741569906886,3.3125,127.36,127.29,0.05166873]
[1741569908589,32.20676884,127.33,127.29,0.05166873]
[1741569908785,35.46,127.32,127.29,0.05166873]
[1741569909192,32.20676884,127.3,127.22,35.46]
[1741569909389,32.20676884,127.27,127.17,451.44]
[1741569909694,32.20676884,127.27,127.18,35.46]
[1741569909886,32.20676884,127.27,127.16,6.5682]
[1741569910083,32.20676884,127.27,127.17,35.46]
[1741569910284,3.2329,127.26,127.17,35.46]
[1741569910492,0.05436069,127.23,127.2,0.05171931]
[1741569911189,0.05436069,127.23,127.14,83.01102252]
[1741569911391,2.6038,127.23,127.14,83.01102252]
[1741569911593,32.20676884,127.21,127.14,83.01102252]
[1741569911986,7.8654,127.17,127.13,38.8404]
[1741569912292,32.20676884,127.19,127.11,35.44]
[1741569912487,0.05716271,127.16,127.14,0.05032355]
[1741569915895,7.8661,127.15,127.14,0.05032355]
[1741569916393,0.05716271,127.16,127.14,0.05032355]
[1741569917699,7.92266271,127.16,127.14,0.05032355]
[1741569918199,0.05716271,127.16,127.14,0.05032355]
[1741569919293,7.92266271,127.16,127.14,0.05032355]
[1741569919801,0.05716271,127.16,127.14,0.05032355]
[1741569919999,7.92286271,127.16,127.14,0.05032355]
[1741569920197,0.05716271,127.16,127.14,7.91682355]
[1741569921397,0.05716271,127.16,127.14,0.05032355]
[1741569921902,7.8684,127.12,127.09,3.4004]
[1741569922293,38.7438,127.15,127.09,3.4004]
[1741569922598,32.20676884,127.14,127.07,7.8706]
[1741569922901,32.20676884,127.14,127.06,6.5916]
[1741569923096,7.92490801,127.12,127.09,7.92382642]
[1741569923498,0.05660801,127.12,127.09,0.05412642]
[1741569924093,0.05660801,127.12,127.11,7.8686]
[1741569924397,259.42,127.18,127.09,35.49412642]
[1741569924798,7.8652,127.17,127.13,7.8667]
[1741569925004,259.42,127.18,127.1,3.2666]
[1741569925396,7.8649,127.17,127.13,7.867]
[1741569925600,7.8649,127.17,127.13,7.92402309]
[1741569925601,0.05147368,127.15,127.13,7.92402309]
[1741569925802,0.05147368,127.15,127.13,0.05702309]
[1741569926497,32.20676884,127.23,127.13,35.49702309]
[1741569926698,262.5828,127.24,127.14,3.3904]
[1741569926900,3.1228,127.24,127.16,32.20676884]
[1741569927101,5.9552,127.29,127.19,32.20676884]
[1741569927302,43.56216404,127.3,127.21,32.20676884]
[1741569927493,7.8581,127.28,127.22,42.2224]
[1741569927696,43.56216404,127.3,127.24,0.05901038]
[1741569928002,0.05521061,127.27,127.24,0.05901038]
[1741569931704,0.05521061,127.27,127.24,7.91901038]
[1741569931904,0.05521061,127.27,127.24,0.05901038]
[1741569932997,32.20676884,127.32,127.24,0.05901038]
[1741569933201,35.42,127.34,127.27,7.8583]
[1741569933599,3.3266,127.35,127.26,35.4]
[1741569933803,5.9552,127.37,127.26,35.4]
[1741569934003,5.9552,127.37,127.27,3.1734]
[1741569934207,41.51666884,127.41,127.3,0.05428693]
[1741569934405,35.4,127.4,127.34,7.8542]
[1741569934609,35.4,127.4,127.31,35.4]
[1741569934807,7.8525,127.37,127.36,0.05503601]
[1741569935106,32.20676884,127.38,127.29,3.3607]
[1741569935499,32.20676884,127.35,127.28,35.4]
[1741569935703,32.20676884,127.33,127.25,35.4]
[1741569936201,0.05503601,127.3,127.28,0.05799375]
[1741569936409,7.8574,127.29,127.28,0.05799375]
[1741569936608,0.05503601,127.3,127.28,0.05799375]
[1741569937307,32.20676884,127.29,127.28,0.05799375]
[1741569937507,0.05503601,127.3,127.28,0.05799375]
[1741569938112,7.91223601,127.3,127.28,0.05799375]
[1741569938313,0.05503601,127.3,127.28,0.05799375]
[1741569939605,7.8574,127.29,127.28,0.05799375]
[1741569940616,7.8574,127.29,127.14,75.6597519]
[1741569940617,3.92,127.29,127.19,35.38]
[1741569940914,52.0097519,127.27,127.19,35.38]
[1741569941811,0.05691249,127.24,127.22,0.05021781]
[1741569942214,7.8611,127.23,127.22,0.05021781]
[1741569944725,0.05691249,127.24,127.17,6.6824]
[1741569944913,7.8639,127.19,127.17,3.3552]
[1741569945608,55.3043519,127.25,127.15,3.2671]
[1741569945814,55.3043519,127.25,127.15,38.6471]
[1741569946013,0.05554412,127.21,127.19,0.05007541]
[1741569946408,0.05554412,127.21,127.14,11.0324]
[1741569946409,0.05554412,127.21,127.14,3.166]
[1741569946616,0.05554412,127.21,127.12,43.2477]
[1741569946811,7.8659,127.16,127.12,35.38]
[1741569947019,52.0097519,127.22,127.13,7.8673]
[1741569947209,52.0097519,127.22,127.12,35.38]
[1741569947617,0.05296711,127.18,127.16,0.05297565]
[1741569948620,7.91756711,127.18,127.16,0.05297565]
[1741569948816,0.05296711,127.18,127.16,0.05297565]
[1741569949324,7.91756711,127.18,127.16,0.05297565]
[1741569950018,7.8649,127.17,127.16,0.05297565]
[1741569950923,7.91736711,127.18,127.16,0.05297565]
[1741569951426,7.8649,127.17,127.16,0.05297565]
[1741569952223,3.94,127.17,127.07,35.38]
[1741569952423,52.0097519,127.15,127.07,35.38]
[1741569952726,7.8689,127.11,127.07,35.38]
[1741569952930,52.0097519,127.12,127.06,6.4293]
[1741569953322,0.05639111,127.1,127.08,0.05890152]
[1741569953625,87.3897519,127.15,127.08,7.92930152]
[1741569953825,0.05364149,127.1,127.08,7.92930152]
[1741569954020,0.05364149,127.1,127.08,0.05890152]
[1741569954323,0.05357534,127.1,127.08,0.05890152]
[1741569954528,262.5291,127.18,127.09,35.36]
[1741569954722,87.3697519,127.2,127.1,52.0097519]
[1741569955221,87.3697519,127.2,127.11,3.0861]
[1741569955924,0.05108794,127.17,127.14,0.05219526]
[1741569956522,7.8661,127.16,127.14,0.05219526]
[1741569956730,0.05108794,127.17,127.14,0.05219526]
[1741569957120,7.8661,127.15,127.14,0.05219526]
[1741569957821,35.38,127.16,127.08,7.8702]
[1741569958028,38.5351,127.16,127.07,35.38]
[1741569959129,0.05535408,127.13,127.1,0.05537409]
[1741569959329,0.05535408,127.13,127.1,7.92397409]
[1741569959528,0.05535408,127.13,127.1,0.05537409]
[1741569959724,0.05535408,127.13,127.11,35.38]
[1741569959917,0.05535408,127.13,127.12,7.8679]
[1741569960118,35.38,127.19,127.11,35.38]
[1741569960322,7.8651,127.17,127.11,38.536]
[1741569960728,35.38,127.19,127.11,38.536]
[1741569961241,0.05042053,127.16,127.14,0.0531748]
[1741569961525,0.05042053,127.16,127.08,3.2464]
[1741569961832,67.44146054,127.15,127.08,3.2464]
[1741569962035,3.1291,127.14,127.08,3.2464]
[1741569962737,0.05787456,127.12,127.1,0.05316682]
[1741569963035,32.1393351,127.12,127.04,3.156]
[1741569963338,32.08146054,127.12,127.02,35.36]
[1741569963524,32.08146054,127.12,127.03,3.4069]
[1741569963834,5.7324,127.14,127.07,7.8707]
[1741569963835,7.8688,127.11,127.07,7.8707]
[1741569964038,32.08146054,127.12,127.03,3.4069]
[1741569964334,0.05353989,127.1,127.08,0.05179331]
[1741569965035,0.05353989,127.1,127.08,35.41179331]
[1741569965329,294.9,127.22,127.08,39.35179331]
[1741569965541,298.3195,127.22,127.09,38.76016054]
[1741569965834,7.8671,127.14,127.1,35.36]
[1741569966035,32.08146054,127.18,127.1,35.36]
[1741569966336,67.44146054,127.18,127.1,35.36]
[1741569966536,0.05004035,127.15,127.13,0.05440846]
[1741569966935,7.8667,127.14,127.13,0.05440846]
[1741569967135,0.05004035,127.15,127.13,0.05440846]
[1741569967635,7.8667,127.14,127.13,0.05440846]
[1741569967929,0.05004035,127.15,127.13,0.05440846]
[1741569968134,0.05004035,127.15,127.14,7.8667]
[1741569968339,0.05004035,127.15,127.13,0.05440846]
[1741569969135,0.05004035,127.15,127.13,7.92120846]
[1741569969438,0.05004035,127.15,127.13,0.05440846]
[1741569969830,0.05004035,127.15,127.14,7.8667]
[1741569970041,32.08146054,127.21,127.14,35.36]
[1741569970230,7.8634,127.2,127.16,7.8651]
[1741569970740,32.08146054,127.21,127.14,35.36]
[1741569970937,32.08146054,127.21,127.12,35.36]
[1741569971336,0.05340255,127.19,127.16,0.05466317]